[Event "Velammal-AICF Women GM 2019"]
[Site "Chennai"]
[Date "2019.01.29"]
[Round "3"]
[White "Uuriintuya, Uurtsaikh"]
[Black "Osmak, Iulija"]
[Result "1/2-1/2"]
[ECO "C77"]
[WhiteElo "2314"]
[BlackElo "2394"]
[Annotator "NA"]
[PlyCount "144"]
[EventDate "2019.01.28"]
[EventType "swiss"]
[EventCountry "IND"]
[SourceTitle "playchess.com"]
[Source "ChessBase"]
[SourceQuality "1"]
[TimeControl "5400+30"]

1. e4 {[%emt 0:00:00]} e5 {[%emt 0:00:00]} 2. Nf3 {[%emt 0:00:00]} Nc6 {[%emt 0:00:00]} 3. Bb5 {[%emt 0:00:00]} a6 {[%emt 0:00:00]} 4. Ba4 {[%emt 0:00:00]} Nf6 {[%emt 0:00:00]} 5. d3 {[%emt 0:00:02]} Bc5 {[%emt 0:00:35]} 6. O-O {[%emt 0:00:22]} d6 {[%emt 0:02:25]} 7. c3 {[%emt 0:00:07]} Ba7 {[%emt 0:00:34] C78: Ruy Lopez: Archangelsk and Möller Defences} 8. Re1 {[%emt 0:02:23]} O-O {[%emt 0:00:14]} 9. Nbd2 {[%emt 0:00:24]} Ne7 {[%emt 0:00:32]} 10. Nf1 {[%emt 0:01:28]} Ng6 {[%emt 0:00:12]} 11. Ng3 {[%emt 0:01:09]} c6 {[%emt 0:10:55]} 12. h3 {[%emt 0:04:39] LiveBook: 13 Games} Re8 {[%emt 0:04:26]} 13. d4 {[%emt 0:05:50]} h6 {[%emt 0:03:01]} 14. Bc2 {[%emt 0:00:42] [#]} Qb6 $146 {[%emt 0:02:38]} ({Predecessor:} 14... Qc7 15. Be3 Bd7 16. Qd2 c5 17. Rad1 cxd4 18. cxd4 Rac8 19. Bb1 {0-1 (58) Alekseev,E (2616)-Sjugirov,S (2650) Riadh 2017}) 15. a4 {[%emt 0:10:41]} a5 {[%emt 0:06:08]} 16. Be3 {[%emt 0:00:48]} Qc7 {[%emt 0:03:04]} ({But not} 16... Qxb2 $6 17. Qd2 $16) 17. Qd2 {[%emt 0:04:22]} Be6 {[%emt 0:01:08]} 18. Nf5 {[%emt 0:08:55]} Bxf5 {[%emt 0:06:47]} 19. exf5 {[%emt 0:00:13]} e4 {[%emt 0:15:27]} 20. fxg6 {[%emt 0:01:10]} exf3 {[%emt 0:00:08]} 21. g3 {[%emt 0:02:36]} Qd7 {[%emt 0:08:42]} 22. Kh2 {[%emt 0:02:21]} Ne4 {[%emt 0:04:16]} 23. Bxe4 {[%emt 0:11:52]} Rxe4 {[%emt 0:00:20] [#]} 24. Bxh6 $1 {[%emt 0:03:36]} Rxe1 {[%emt 0:08:47]} 25. Rxe1 {[%emt 0:00:03]} fxg6 {[%emt 0:08:22]} 26. Bf4 {[%emt 0:02:33]} Rf8 {[%emt 0:04:04]} 27. Qe3 {[%emt 0:00:33]} Bb8 {[%emt 0:02:22]} 28. h4 {[%emt 0:02:12]} Bc7 {[%emt 0:04:48]} 29. Qe6+ {[%emt 0:05:37]} Qxe6 {[%emt 0:01:11]} 30. Rxe6 {[%emt 0:00:06]} Rf6 {[%emt 0:00:45]} 31. Re8+ {[%emt 0:01:26]} Rf8 {[%emt 0:00:54]} 32. Rxf8+ {[%emt 0:06:08]} Kxf8 {[%emt 0:00:03]} 33. g4 {[%emt 0:00:23]} Kf7 {[%emt 0:00:42]} 34. Kg3 {[%emt 0:00:08]} Ke6 {[%emt 0:00:18]} 35. c4 {[%emt 0:02:18]} Bd8 {[%emt 0:01:07]} 36. b3 {[%emt 0:01:32]} Bf6 {[%emt 0:00:59]} 37. Bd2 {[%emt 0:05:44]} Bxd4 {[%emt 0:01:27]} 38. Bxa5 {[%emt 0:00:12]} Bf6 {[%emt 0:00:10]} 39. Bd2 {[%emt 0:02:06]} ({Don't take} 39. Kxf3 $6 Bxh4 40. Ke3 d5 $11) 39... d5 $16 {[%emt 0:00:27]} 40. h5 {[%emt 0:01:25]} gxh5 {[%emt 0:00:26]} 41. gxh5 {[%emt 0:00:05]} dxc4 {[%emt 0:01:29]} 42. bxc4 {[%emt 0:00:42]} Kf5 {[%emt 0:00:33]} 43. Kxf3 {[%emt 0:00:49]} Bb2 {[%emt 0:00:22]} 44. Be3 {[%emt 0:00:30]} Bf6 {[%emt 0:00:30]} 45. Ke2 {[%emt 0:00:30]} Kg4 {[%emt 0:00:30]} 46. h6 {[%emt 0:00:30]} gxh6 {[%emt 0:00:30]} 47. Bxh6 {[%emt 0:00:30]} Be5 {[%emt 0:00:30]} 48. Be3 {[%emt 0:02:58]} Bf6 {[%emt 0:00:19]} 49. Kd3 {[%emt 0:01:03]} Kf3 {[%emt 0:00:49]} 50. Kc2 {[%emt 0:04:04]} Bh4 {[%emt 0:00:30]} 51. Kb3 {[%emt 0:01:00]} Be7 {[%emt 0:00:23]} 52. Kc3 {[%emt 0:02:10]} Ke4 {[%emt 0:00:04]} 53. Bd4 {[%emt 0:00:17]} Bd8 {[%emt 0:00:33]} 54. Bc5 {[%emt 0:00:36]} Ba5+ {[%emt 0:00:28]} 55. Kc2 {[%emt 0:00:31]} Bd8 {[%emt 0:00:26]} 56. Kd2 {[%emt 0:00:35]} Kf3 {[%emt 0:00:11]} 57. Kd3 {[%emt 0:00:16]} Bf6 {[%emt 0:00:37]} 58. Bb6 {[%emt 0:00:24]} Bh4 {[%emt 0:00:18]} 59. Kc3 {[%emt 0:00:14]} Bf6+ {[%emt 0:01:32]} 60. Kb3 {[%emt 0:01:23]} Be7 {[%emt 0:00:17]} 61. a5 {[%emt 0:01:04]} Ke4 {[%emt 0:00:18]} 62. Kc3 {[%emt 0:00:11]} Bf6+ {[%emt 0:00:27]} 63. Kb4 {[%emt 0:00:06]} Be7+ {[%emt 0:00:12]} 64. Bc5 {[%emt 0:00:11]} Bg5 {[%emt 0:00:31]} 65. Bb6 {[%emt 0:01:21]} Be7+ {[%emt 0:00:03]} 66. Kb3 {[%emt 0:00:53]} Bf6 {[%emt 0:00:15]} 67. Bc5 {[%emt 0:00:43]} Bg5 {[%emt 0:00:32]} 68. Kb4 {[%emt 0:01:14]} Bd2+ {[%emt 0:00:18]} 69. Ka4 {[%emt 0:00:06]} Be1 {[%emt 0:00:53]} 70. Bb6 {[%emt 0:00:20]} Bd2 {[%emt 0:00:19]} 71. Ka3 {[%emt 0:01:07]} Bg5 {[%emt 0:00:26]} 72. Kb4 {[%emt 0:00:34]} Ke5 1/2-1/2

[Event "Velammal-AICF Women GM 2019"]
[Site "Chennai"]
[Date "2019.01.29"]
[Round "3"]
[White "Babiy, Olga"]
[Black "Nakhbayeva, Guliskhan"]
[Result "1-0"]
[ECO "C17"]
[WhiteElo "2275"]
[BlackElo "2336"]
[Annotator "NA"]
[PlyCount "84"]
[EventDate "2019.01.28"]
[EventType "swiss"]
[EventCountry "IND"]
[SourceTitle "playchess.com"]
[Source "ChessBase"]
[SourceQuality "1"]
[TimeControl "5400+30"]

1. e4 {[%emt 0:00:00]} e6 {[%emt 0:00:00]} 2. d4 {[%emt 0:00:00]} d5 {[%emt 0:00:00]} 3. Nc3 {[%emt 0:00:00]} Bb4 {[%emt 0:00:00]} 4. e5 {[%emt 0:00:00]} c5 {[%emt 0:00:00]} 5. a3 {[%emt 0:00:12]} Ba5 {[%emt 0:00:13]} 6. b4 {[%emt 0:00:32]} cxd4 {[%emt 0:00:05]} 7. Nb5 {[%emt 0:00:25]} Bc7 {[%emt 0:00:05]} 8. f4 {[%emt 0:00:37]} Bd7 {[%emt 0:00:09]} 9. Nxc7+ {[%emt 0:02:21]} Qxc7 {[%emt 0:00:06]} 10. Nf3 {[%emt 0:00:07] C18: French: 3 Nc3 Bb4: Main line: 7 h4 and 7 Qg4} Ba4 {[%emt 0:00:19]} 11. Bd3 {[%emt 0:00:27]} Ne7 {[%emt 0:00:05]} 12. O-O {[%emt 0:00:53]} Qb6 {[%emt 0:02:34]} 13. Kh1 {[%emt 0:01:09]} Bb5 {[%emt 0:01:47]} 14. Nxd4 {[%emt 0:00:27]} Bxd3 {[%emt 0:00:27]} 15. Qxd3 {[%emt 0:00:07]} Nbc6 {[%emt 0:01:39] [#]} 16. Nb5 $146 {[%emt 0:01:02]} ({Predecessor:} 16. Nf3 a6 17. Be3 Qb5 {½-½ (40) Vidit,S (2715)-Vitiugov,N (2730) Linares 2018}) 16... O-O {[%emt 0:01:12]} 17. Be3 {[%emt 0:02:50]} Qd8 {[%emt 0:06:18]} 18. Nd6 {[%emt 0:06:39]} b6 {[%emt 0:11:52]} 19. c4 {[%emt 0:02:31]} f6 {[%emt 0:02:26]} 20. exf6 {[%emt 0:17:00]} Rxf6 {[%emt 0:05:27]} 21. Nb5 {[%emt 0:08:36]} (21. c5 $16) 21... a6 {[%emt 0:02:57]} (21... dxc4 $11 22. Qxc4 Nd5) 22. Nd4 {[%emt 0:02:41]} dxc4 {[%emt 0:10:31]} 23. Qxc4 {[%emt 0:01:20] Double Attack} b5 {[%emt 0:05:39]} 24. Nxc6 {[%emt 0:11:23]} bxc4 {[%emt 0:00:06]} 25. Nxd8 {[%emt 0:00:04]} Rxd8 {[%emt 0:00:03]} 26. Bc5 {[%emt 0:00:18]} Nd5 {[%emt 0:14:39]} 27. g3 {[%emt 0:01:04]} Nc3 $2 {[%emt 0:00:29]} (27... c3 $11 {and Black has nothing to worry.}) 28. Be7 {[%emt 0:03:53]} Rd3 {[%emt 0:04:09]} (28... Rc8 $142) 29. Bxf6 {[%emt 0:01:17]} gxf6 {[%emt 0:00:02]} 30. Rac1 $18 {[%emt 0:04:27]} Kf7 {[%emt 0:06:59]} 31. Rfe1 {[%emt 0:04:39]} Ke7 {[%emt 0:01:02]} 32. Rc2 {[%emt 0:00:15]} h5 {[%emt 0:13:08]} 33. Rec1 {[%emt 0:05:44]} Nd5 {[%emt 0:00:50]} 34. Rxc4 {[%emt 0:00:08]} Rxa3 {[%emt 0:00:03]} 35. f5 {[%emt 0:00:59]} e5 {[%emt 0:04:04]} 36. Rc6 {[%emt 0:00:49]} Kf7 {[%emt 0:06:01]} 37. Rd6 {[%emt 0:05:43]} Ne3 {[%emt 0:00:11]} 38. Rd7+ {[%emt 0:00:23]} Ke8 {[%emt 0:00:07]} 39. Ra7 {[%emt 0:00:42]} Kd8 {[%emt 0:01:45]} 40. b5 {[%emt 0:00:12]} Ra4 {[%emt 0:01:58]} 41. b6 {[%emt 0:00:47]} Nc4 {[%emt 0:00:20]} 42. Ra8+ {[%emt 0:00:37]} Ke7 1-0

[Event "Velammal-AICF Women GM 2019"]
[Site "Chennai"]
[Date "2019.01.29"]
[Round "3"]
[White "Aakanksha Hagawane"]
[Black "Franco Valencia, Angela"]
[Result "1-0"]
[ECO "C70"]
[WhiteElo "2259"]
[BlackElo "2107"]
[Annotator "NA"]
[PlyCount "93"]
[EventDate "2019.01.28"]
[EventType "swiss"]
[EventCountry "IND"]
[SourceTitle "playchess.com"]
[Source "ChessBase"]
[SourceQuality "1"]
[TimeControl "5400+30"]

{[%evp 18,84,28,30,40,36,60,6,32767,32767,17,15,23,22,20,0,12,4,16,4,0,0,0,-2,-3,-74,60,32767,32767,32767,110,99,103,32767,32767,16,22,18,32767,32,35,12,43,37,54,32767,32767,78,60,95,183,184,32767,32767,32767,32767,32767,32767,32767,32767,32767,32767,32767,32767,32767,32767,32767,5289,2213]} 1. e4 {[%emt 0:00:00]} e5 {[%emt 0:01:50]} 2. Nf3 {[%emt 0:00:00]} Nc6 {[%emt 0:00:08]} 3. Bb5 {[%emt 0:00:00]} a6 {[%emt 0:00:07]} 4. Ba4 {[%emt 0:00:00]} g6 {[%emt 0:00:07]} 5. O-O {[%emt 0:00:24]} Bg7 {[%emt 0:00:19]} 6. c3 {[%emt 0:00:45]} d6 {[%emt 0:00:15]} 7. h3 {[%emt 0:01:58]} Bd7 {[%emt 0:00:16]} 8. d4 {[%emt 0:00:28]} Nf6 {[%emt 0:01:41]} 9. Re1 {[%emt 0:02:39]} O-O {[%emt 0:00:57]} 10. Nbd2 {[%emt 0:01:28]} Nh5 {[%emt 0:06:09] C60: Ruy Lopez: Unusual Black 3rd moves and 3...g6} (10... h6 11. Nf1 Re8 12. Ng3 b5 13. Bc2 exd4 14. cxd4 Nb4 15. Bb1 c5 16. d5 a5 17. a3 Na6 18. Bf4 {1-0 (57) Ivanchuk,V (2726)-Mamedyarov,S (2799) Huaian 2017}) 11. Nf1 {[%emt 0:02:42]} h6 {[%emt 0:03:13] LiveBook: 4 Games} 12. Ng3 $146 {[%emt 0:15:35]} ({White should play} 12. Be3 $14) ({Predecessor:} 12. Ne3 Re8 13. dxe5 dxe5 14. Bb3 Nf4 15. Nd5 Nxd5 16. Bxd5 Be6 17. Bxe6 Rxe6 18. Qb3 {½-½ (98) Ortiz Suarez,I (2611)-Matsuura,E (2486) Praia da Pipa 2014}) 12... Nxg3 {[%emt 0:01:13]} 13. fxg3 {[%emt 0:00:04]} b5 {[%emt 0:00:13]} 14. Bc2 {[%emt 0:00:34]} exd4 {[%emt 0:00:18]} 15. cxd4 {[%emt 0:00:08]} Na5 {[%emt 0:01:51]} 16. Bd2 {[%emt 0:02:33]} Nc4 {[%emt 0:00:53]} 17. Bc3 {[%emt 0:00:30]} a5 {[%emt 0:05:06]} 18. b3 {[%emt 0:06:19]} Na3 {[%emt 0:01:45]} 19. Bd3 {[%emt 0:00:37]} b4 {[%emt 0:01:54]} 20. Bb2 {[%emt 0:02:13]} c5 {[%emt 0:02:52]} 21. Qc1 {[%emt 0:11:40]} (21. Qe2 $11 {remains equal.}) 21... Nb5 {[%emt 0:04:36]} (21... Rc8 $15) 22. Bxb5 {[%emt 0:10:43]} Bxb5 {[%emt 0:00:06]} 23. dxc5 {[%emt 0:00:04]} Bxb2 {[%emt 0:00:34]} 24. Qxb2 {[%emt 0:00:01]} dxc5 {[%emt 0:00:07]} 25. Rad1 {[%emt 0:00:16]} Qb6 {[%emt 0:00:28]} 26. Kh2 {[%emt 0:00:14]} Rad8 {[%emt 0:04:33]} 27. Rc1 {[%emt 0:03:00]} a4 {[%emt 0:05:21]} 28. bxa4 {[%emt 0:03:36]} Bxa4 {[%emt 0:00:25]} 29. Qf2 {[%emt 0:00:21]} Rc8 {[%emt 0:00:16]} 30. Ne5 {[%emt 0:01:45]} Qd6 {[%emt 0:05:02]} 31. Ng4 {[%emt 0:02:29]} h5 {[%emt 0:05:44]} 32. Nf6+ {[%emt 0:02:07]} Kg7 $1 {[%emt 0:00:20]} 33. e5 {[%emt 0:01:28]} Qe6 {[%emt 0:10:27]} (33... Qd4 $14 34. Qf1 Rc6) 34. Ne4 {[%emt 0:02:14]} c4 {[%emt 0:15:39]} 35. Nc5 {[%emt 0:01:43]} Qc6 {[%emt 0:02:20]} 36. Rxc4 {[%emt 0:06:15]} Bb5 {[%emt 0:01:10]} 37. Rcc1 {[%emt 0:00:28]} Qd5 {[%emt 0:01:26]} 38. e6 {[%emt 0:02:49]} h4 {[%emt 0:05:26]} 39. gxh4 {[%emt 0:05:00]} Kh7 {[%emt 0:07:05]} 40. e7 {[%emt 0:03:17]} Rfe8 {[%emt 0:01:30]} 41. Ne4 {[%emt 0:00:52]} Kh6 {[%emt 0:00:54]} 42. Qf4+ {[%emt 0:00:41]} Kg7 $18 {[%emt 0:00:28]} 43. Qf6+ {[%emt 0:02:28]} Kh6 {[%emt 0:03:20]} 44. Rxc8 {[%emt 0:00:49]} Rxc8 {[%emt 0:00:08]} 45. Qg5+ {[%emt 0:00:24]} Qxg5 {[%emt 0:00:06]} 46. hxg5+ {[%emt 0:00:04]} Kg7 {[%emt 0:00:08]} 47. Nd6 {[%emt 0:00:03]} 1-0

[Event "Velammal-AICF Women GM 2019"]
[Site "Chennai"]
[Date "2019.01.29"]
[Round "3"]
[White "Michelle Catherina, P."]
[Black "Munguntuul, Batkhuyag"]
[Result "1/2-1/2"]
[ECO "B44"]
[WhiteElo "2175"]
[BlackElo "2428"]
[Annotator "NA RC"]
[PlyCount "93"]
[EventDate "2019.01.28"]
[EventType "swiss"]
[EventCountry "IND"]
[SourceTitle "playchess.com"]
[Source "ChessBase"]
[SourceQuality "1"]
[TimeControl "5400+30"]

{[%evp 24,78,32,0,18,0,33,31,31,29,37,25,39,33,39,44,46,55,44,43,63,47,52,54,52,64,66,50,32767,32767,32767,32767,32767,32767,32767,32767,32767,32767,32767,32767,32767,0,0,-11,-13,-9,0,0,0,0,0,0,0,32767,32767,0,27]} 1. e4 {[%emt 0:02:14]} c5 {[%emt 0:00:00]} 2. Nf3 {[%emt 0:00:11]} e6 {[%emt 0:00:00]} 3. d4 {[%emt 0:00:06]} cxd4 {[%emt 0:00:00]} 4. Nxd4 {[%emt 0:00:04]} Nc6 {[%emt 0:00:00]} 5. Nb5 {[%emt 0:00:09]} d6 {[%emt 0:00:01]} 6. c4 {[%emt 0:00:24]} Nf6 {[%emt 0:01:16]} 7. N1c3 {[%emt 0:00:09]} a6 {[%emt 0:00:04]} 8. Na3 {[%emt 0:00:05]} Be7 {[%emt 0:00:09]} 9. Be2 {[%emt 0:00:22]} O-O {[%emt 0:00:11]} 10. O-O {[%emt 0:01:12]} b6 {[%emt 0:00:32]} 11. Be3 {[%emt 0:00:13]} Bb7 {[%emt 0:03:10]} 12. f3 {[%emt 0:00:24]} Ne5 {[%emt 0:01:38]} 13. Kh1 {[%emt 0:05:45]} Rc8 {[%emt 0:02:11]} 14. Rc1 {[%emt 0:01:18]} Qc7 {[%emt 0:02:05]} 15. Qd2 {[%emt 0:01:54]} Rfe8 {[%emt 0:06:42]} 16. Rfd1 {[%emt 0:00:51]} Ned7 {[%emt 0:02:07]} 17. Bf1 {[%emt 0:01:45]} Qb8 {[%emt 0:00:54]} 18. Nc2 {[%emt 0:09:39] B44: Sicilian: Taimanov: 5 Nb5} (18. Bf4 Ne5 19. Bg5 Red8 20. Be3 Ned7 21. Qf2 Ba8 22. Rd2 h6 23. Rcd1 Qc7 24. Nc2 Re8 25. a3 Bb7 {½-½ (55) Henriquez Villagra,C (2500)-Potkin,V (2574) St Petersburg 2017}) 18... Bd8 {[%emt 0:07:39]} 19. Bg1 {[%emt 0:00:41]} Bc7 {[%emt 0:01:51]} 20. Ne3 {[%emt 0:01:27] LiveBook: 5 Games} Ne5 {[%emt 0:05:11]} 21. h3 $146 {[%emt 0:05:17]} ({Predecessor:} 21. Qf2 Red8 22. Rc2 Qa8 23. Rcd2 h6 24. Rd4 Nc6 25. R4d2 Ne5 {½-½ (32) Barria Zuniga,D (2432)-Elissalt Cardenas,H (2353) Madrid 2012}) 21... Rcd8 {[%emt 0:10:20]} 22. Bh2 {[%emt 0:09:38]} Nh5 {[%emt 0:08:22]} 23. b4 {[%emt 0:12:52]} h6 {[%emt 0:06:08]} 24. Ng4 {[%emt 0:16:04]} Ng6 {[%emt 0:05:43]} 25. a3 {[%emt 0:05:40]} Kh7 {[%emt 0:07:19]} 26. Bd3 {[%emt 0:03:18]} Kg8 {[%emt 0:04:03]} 27. Bf1 {[%emt 0:00:38]} Re7 {[%emt 0:03:03]} 28. Kg1 {[%emt 0:11:49]} Red7 {[%emt 0:04:21]} 29. Rc2 {[%emt 0:01:50]} Ba8 {[%emt 0:02:28]} 30. Rcc1 {[%emt 0:02:11]} Qa7 {[%emt 0:03:23]} 31. Kh1 {[%emt 0:01:26]} Bb8 {[%emt 0:02:59]} 32. Rc2 {[%emt 0:04:41]} ({Better is} 32. Nxh6+ $16 gxh6 33. Qxh6) 32... d5 $1 {[%emt 0:00:19]} 33. Bxb8 {[%emt 0:01:05]} Qxb8 {[%emt 0:00:02]} 34. cxd5 {[%emt 0:00:36]} Ng3+ {[%emt 0:00:05]} 35. Kg1 {[%emt 0:00:07]} Nxf1 {[%emt 0:01:33]} 36. Kxf1 {[%emt 0:00:15]} ({Much weaker is} 36. Rxf1 exd5 37. exd5 Bxd5 $15) 36... exd5 {[%emt 0:00:33]} 37. Nxd5 {[%emt 0:01:03]} Bxd5 {[%emt 0:02:37]} 38. exd5 {[%emt 0:00:02]} Nf4 {[%emt 0:01:26]} 39. Ne3 {[%emt 0:01:02]} Qe5 $11 {[%emt 0:02:38]} 40. Qd4 {[%emt 0:00:57]} Qxd4 {[%emt 0:02:31]} 41. Rxd4 {[%emt 0:00:02]} Nxd5 {[%emt 0:00:10]} 42. Nxd5 {[%emt 0:00:18]} Rxd5 {[%emt 0:00:01]} 43. Rxd5 {[%emt 0:00:47]} Rxd5 {[%emt 0:00:02]} 44. Rc8+ {[%emt 0:00:33]} Kh7 {[%emt 0:00:01]} 45. Rc6 {[%emt 0:00:13]} Rd3 {[%emt 0:00:20]} 46. a4 {[%emt 0:01:00]} Ra3 {[%emt 0:00:05]} 47. Rxb6 {[%emt 0:00:06]} 1/2-1/2

[Event "Velammal-AICF Women GM 2019"]
[Site "Chennai"]
[Date "2019.01.29"]
[Round "3"]
[White "Divya Deshmukh"]
[Black "Sapale Saloni"]
[Result "1-0"]
[ECO "B50"]
[WhiteElo "2168"]
[BlackElo "2198"]
[Annotator "NA"]
[PlyCount "65"]
[EventDate "2019.01.28"]
[EventType "swiss"]
[EventCountry "IND"]
[SourceTitle "playchess.com"]
[Source "ChessBase"]
[SourceQuality "1"]
[TimeControl "5400+30"]

1. e4 {[%emt 0:00:00]} c5 {[%emt 0:00:18]} 2. Nf3 {[%emt 0:00:00]} d6 {[%emt 0:00:10]} 3. d4 {[%emt 0:00:00]} Nf6 {[%emt 0:00:06]} 4. Nc3 {[%emt 0:00:13]} cxd4 {[%emt 0:00:09]} 5. Qxd4 {[%emt 0:00:08]} Nc6 {[%emt 0:00:08]} 6. Bb5 {[%emt 0:00:04]} Bd7 {[%emt 0:00:18]} 7. Bxc6 {[%emt 0:00:08]} Bxc6 {[%emt 0:00:08]} 8. Bg5 {[%emt 0:00:05]} Qa5 {[%emt 0:18:52]} (8... e6 $11) 9. O-O-O {[%emt 0:04:20] LiveBook: 11 Games} Rc8 {[%emt 0:02:03] B53: Sicilian: 2...d6: Lines with Qxd4} 10. Kb1 {[%emt 0:01:01]} e5 $146 {[%emt 0:15:00]} ({Predecessor:} 10... h6 11. Bxf6 gxf6 12. Qd3 Qc5 13. Nd4 Bd7 14. Rhe1 Rg8 15. g3 Qc4 16. Qd2 e6 17. f4 {½-½ (41) Stojanovski,D (2436)-Stanojoski,Z (2493) Skopje 2011}) 11. Qd2 {[%emt 0:04:42]} Be7 {[%emt 0:03:31]} 12. h4 {[%emt 0:01:56]} h6 {[%emt 0:07:17]} 13. Bxf6 $1 {[%emt 0:00:14]} Bxf6 {[%emt 0:01:03]} 14. g4 {[%emt 0:00:08]} Be7 {[%emt 0:00:28]} 15. Ne1 {[%emt 0:01:48]} Qd8 {[%emt 0:05:33]} 16. Ng2 {[%emt 0:00:47]} Bd7 {[%emt 0:05:00]} 17. Ne3 {[%emt 0:04:11]} Be6 {[%emt 0:02:13]} 18. g5 {[%emt 0:01:18]} Rc6 {[%emt 0:09:15]} 19. Ncd5 {[%emt 0:00:57]} Bxd5 {[%emt 0:01:06]} 20. exd5 {[%emt 0:00:46]} Rc7 {[%emt 0:00:19]} 21. Nf5 {[%emt 0:00:06]} hxg5 {[%emt 0:04:32]} 22. hxg5 {[%emt 0:00:18]} Rxh1 {[%emt 0:00:14]} 23. Rxh1 {[%emt 0:00:15]} Kd7 {[%emt 0:00:12]} 24. g6 {[%emt 0:14:23]} Qf8 {[%emt 0:07:38]} 25. gxf7 {[%emt 0:01:19]} Qxf7 {[%emt 0:00:47]} 26. Qd3 {[%emt 0:00:10]} Rc5 {[%emt 0:01:09]} 27. c4 {[%emt 0:00:20]} b5 {[%emt 0:03:11]} 28. b3 {[%emt 0:02:06]} Bf6 {[%emt 0:04:51]} 29. Ng3 {[%emt 0:00:58]} bxc4 {[%emt 0:02:36]} 30. bxc4 {[%emt 0:00:24]} Bd8 {[%emt 0:06:04]} 31. Ne4 $18 {[%emt 0:00:15]} Rc8 {[%emt 0:00:23]} 32. Qh3+ {[%emt 0:00:05]} Kc7 {[%emt 0:00:06]} 33. Qxc8+ {[%emt 0:00:04]} 1-0

[Event "Velammal-AICF Women GM 2019"]
[Site "Chennai"]
[Date "2019.01.29"]
[Round "3"]
[White "Chandreyee, Hajra"]
[Black "Varshini, V."]
[Result "1/2-1/2"]
[ECO "B92"]
[WhiteElo "1925"]
[BlackElo "2171"]
[Annotator "NA"]
[PlyCount "90"]
[EventDate "2019.01.28"]
[EventType "swiss"]
[EventCountry "IND"]
[SourceTitle "playchess.com"]
[Source "ChessBase"]
[SourceQuality "1"]
[TimeControl "5400+30"]

1. e4 {[%emt 0:02:04]} c5 {[%emt 0:00:00]} 2. Nf3 {[%emt 0:00:07]} d6 {[%emt 0:00:00]} 3. d4 {[%emt 0:00:04]} cxd4 {[%emt 0:00:00]} 4. Nxd4 {[%emt 0:00:07]} Nf6 {[%emt 0:00:00]} 5. Nc3 {[%emt 0:00:07]} a6 {[%emt 0:00:00]} 6. Be2 {[%emt 0:00:05]} e5 {[%emt 0:00:19]} 7. Nb3 {[%emt 0:00:06]} Be7 {[%emt 0:00:06]} 8. O-O {[%emt 0:00:04]} O-O {[%emt 0:00:16]} 9. Kh1 {[%emt 0:00:42]} Be6 {[%emt 0:04:28]} 10. f4 {[%emt 0:00:49]} Qc7 {[%emt 0:02:08]} 11. Nd5 {[%emt 0:02:55]} Bxd5 {[%emt 0:04:53]} 12. exd5 {[%emt 0:00:07]} Nbd7 {[%emt 0:01:09]} 13. c4 {[%emt 0:02:06]} b6 {[%emt 0:18:14]} 14. Be3 {[%emt 0:04:52]} Nc5 {[%emt 0:03:15]} 15. Nxc5 {[%emt 0:12:40]} bxc5 {[%emt 0:00:12]} 16. Qc2 {[%emt 0:04:46]} Rfe8 {[%emt 0:10:05]} 17. fxe5 {[%emt 0:03:40]} dxe5 {[%emt 0:00:19]} 18. a3 {[%emt 0:13:55]} e4 {[%emt 0:07:39]} 19. Bd1 {[%emt 0:06:28]} Bd6 {[%emt 0:03:55]} 20. g3 {[%emt 0:05:36]} Nd7 {[%emt 0:18:37]} 21. Qg2 {[%emt 0:02:33]} Ne5 {[%emt 0:02:37]} 22. Ba4 {[%emt 0:07:04]} Re7 {[%emt 0:05:14]} 23. Qxe4 {[%emt 0:01:58]} Nxc4 {[%emt 0:00:38]} 24. Qxc4 {[%emt 0:00:15]} Rxe3 {[%emt 0:00:05]} 25. Rae1 {[%emt 0:09:14]} Qe7 {[%emt 0:00:50]} 26. Rxe3 {[%emt 0:00:19]} Qxe3 {[%emt 0:00:05]} 27. Kg2 {[%emt 0:00:35]} g6 {[%emt 0:04:31]} 28. Rf2 {[%emt 0:01:29]} h5 {[%emt 0:03:31]} 29. Qe2 {[%emt 0:03:28]} Qxe2 {[%emt 0:06:34]} 30. Rxe2 {[%emt 0:00:14]} Kg7 {[%emt 0:00:04]} 31. Bb3 {[%emt 0:02:05]} Rb8 {[%emt 0:00:39]} 32. Bc4 {[%emt 0:00:08]} a5 {[%emt 0:00:04]} 33. a4 {[%emt 0:00:26]} Rh8 {[%emt 0:00:48]} 34. h3 {[%emt 0:03:02]} Rb8 {[%emt 0:01:17]} 35. b3 {[%emt 0:00:19]} Rh8 {[%emt 0:00:10]} 36. Bb5 {[%emt 0:00:21]} Rd8 {[%emt 0:01:42]} 37. Re8 {[%emt 0:02:33]} Rxe8 {[%emt 0:00:06]} 38. Bxe8 {[%emt 0:00:06]} Kf8 {[%emt 0:00:08]} 39. Bb5 {[%emt 0:00:16]} Ke7 {[%emt 0:00:03]} 40. Kf3 {[%emt 0:00:26]} Bc7 {[%emt 0:00:55]} 41. g4 {[%emt 0:00:27]} hxg4+ {[%emt 0:00:08]} 42. hxg4 {[%emt 0:00:07]} Kd6 {[%emt 0:00:25]} 43. Ke4 {[%emt 0:00:37]} f5+ {[%emt 0:00:15]} 44. gxf5 {[%emt 0:00:20]} gxf5+ {[%emt 0:00:03]} 45. Kxf5 {[%emt 0:00:11]} Kxd5 {[%emt 0:00:01] Ke4+ Ke5+} 1/2-1/2